[Event "Schack-SM 2024: Sverigemastarklassen"]
[Site "Fortnox Arena, Hejaregatan 5, Vaxjo, Sweden"]
[Date "2024.07.06"]
[Round "8.4"]
[White "Lokander, Martin"]
[Black "Semcesen, Daniel"]
[Result "0-1"]
[TimeControl "90 minutes for 40 moves + 30 minutes for the rest of the game + 30 seconds per move from move one."]
[WhiteTitle "IM"]
[BlackTitle "GM"]
[WhiteElo "2474"]
[BlackElo "2451"]

1. d4 {[%clk 01:30:46]} {[%emt 00:00:14]} d5 {[%clk 01:30:26]} {[%emt
00:00:35]} 2. c4 {[%clk 01:30:54]} {[%emt 00:00:22]} dxc4 {[%clk 01:30:48]}
{[%emt 00:00:08]} 3. Nf3 {[%clk 01:30:56]} {[%emt 00:00:28]} Nf6 {[%clk
01:30:55]} {[%emt 00:00:23]} 4. e3 {[%clk 01:31:21]} {[%emt 00:00:05]} Bg4
{[%clk 01:31:18]} {[%emt 00:00:07]} 5. Bxc4 {[%clk 01:31:30]} {[%emt 00:00:22]}
e6 {[%clk 01:31:38]} {[%emt 00:00:09]} 6. Nc3 {[%clk 01:29:54]} {[%emt
00:02:07]} Nc6 {[%clk 01:31:18]} {[%emt 00:00:49]} 7. h3 {[%clk 01:29:41]}
{[%emt 00:00:44]} Bh5 {[%clk 01:31:21]} {[%emt 00:00:26]} 8. g4 {[%clk
01:28:51]} {[%emt 00:01:21]} Bg6 {[%clk 01:31:29]} {[%emt 00:00:21]} 9. Nh4
{[%clk 01:28:46]} {[%emt 00:00:35]} Nd5 {[%clk 01:29:10]} {[%emt 00:02:50]} 10.
Nxg6 {[%clk 01:28:56]} {[%emt 00:00:20]} hxg6 {[%clk 01:29:36]} {[%emt
00:00:02]} 11. Bd2 {[%clk 01:18:01]} {[%emt 00:11:26]} Qd7 {[%clk 01:27:02]}
{[%emt 00:03:03]} 12. Qf3 {[%clk 01:15:54]} {[%emt 00:02:38]} O-O-O {[%clk
01:24:26]} {[%emt 00:03:06]} 13. O-O-O {[%clk 01:04:04]} {[%emt 00:12:20]} g5
{[%clk 01:15:45]} {[%emt 00:09:11]} 14. Kb1 {[%clk 01:00:59]} {[%emt 00:03:35]}
Kb8 {[%clk 01:14:27]} {[%emt 00:01:47]} 15. Ne4 {[%clk 00:56:14]} {[%emt
00:05:16]} f6 {[%clk 01:11:10]} {[%emt 00:03:47]} 16. a3 {[%clk 00:55:16]}
{[%emt 00:01:29]} a6 {[%clk 01:10:17]} {[%emt 00:01:21]} 17. Qe2 {[%clk
00:46:24]} {[%emt 00:09:23]} Bd6 {[%clk 01:03:34]} {[%emt 00:07:12]} 18. Be1
{[%clk 00:32:35]} {[%emt 00:14:19]} Rh6 {[%clk 00:59:20]} {[%emt 00:04:44]} 19.
Qc2 {[%clk 00:32:31]} {[%emt 00:00:34]} Nce7 {[%clk 00:50:38]} {[%emt
00:09:12]} 20. Qb3 {[%clk 00:28:38]} {[%emt 00:04:24]} Ka8 {[%clk 00:49:01]}
{[%emt 00:02:07]} 21. Ba5 {[%clk 00:22:52]} {[%emt 00:06:18]} Nc6 {[%clk
00:41:20]} {[%emt 00:08:09]} 22. Bd2 {[%clk 00:23:03]} {[%emt 00:00:19]} Nce7
{[%clk 00:41:41]} {[%emt 00:00:09]} 23. Ba5 {[%clk 00:23:29]} {[%emt 00:00:05]}
Nc6 {[%clk 00:41:58]} {[%emt 00:00:12]} 24. Bd2 {[%clk 00:23:54]} {[%emt
00:00:05]} Nce7 {[%clk 00:42:22]} {[%emt 00:00:05]} 25. Nxd6 {[%clk 00:19:32]}
{[%emt 00:04:52]} Qxd6 {[%clk 00:40:36]} {[%emt 00:02:16]} 26. e4 {[%clk
00:19:36]} {[%emt 00:00:25]} Nf4 {[%clk 00:37:33]} {[%emt 00:03:33]} 27. h4
{[%clk 00:09:28]} {[%emt 00:10:39]} Rxh4 {[%clk 00:29:19]} {[%emt 00:08:44]} 28.
Rxh4 {[%clk 00:09:55]} {[%emt 00:00:04]} gxh4 {[%clk 00:29:30]} {[%emt
00:00:18]} 29. Qf3 {[%clk 00:06:47]} {[%emt 00:03:38]} Qxd4 {[%clk 00:25:16]}
{[%emt 00:04:44]} 30. Bb3 {[%clk 00:05:05]} {[%emt 00:02:12]} Qd3+ {[%clk
00:18:22]} {[%emt 00:07:24]} 31. Qxd3 {[%clk 00:05:32]} {[%emt 00:00:04]} Nxd3
{[%clk 00:16:26]} {[%emt 00:02:25]} 32. Be3 {[%clk 00:05:27]} {[%emt 00:00:36]}
Nc6 {[%clk 00:13:45]} {[%emt 00:03:10]} 33. Rh1 {[%clk 00:04:04]} {[%emt
00:01:53]} g5 {[%clk 00:10:54]} {[%emt 00:03:22]} 34. Bxe6 {[%clk 00:04:31]}
{[%emt 00:00:02]} Nce5 {[%clk 00:10:39]} {[%emt 00:00:45]} 35. Kc2 {[%clk
00:03:28]} {[%emt 00:01:33]} Kb8 {[%clk 00:10:27]} {[%emt 00:00:43]} 36. b4
{[%clk 00:03:21]} {[%emt 00:00:38]} Rd6 {[%clk 00:09:53]} {[%emt 00:01:03]} 37.
Bf5 {[%clk 00:02:45]} {[%emt 00:01:07]} b6 {[%clk 00:09:27]} {[%emt 00:00:56]}
38. Kc3 {[%clk 00:02:21]} {[%emt 00:00:54]} Kb7 {[%clk 00:09:29]} {[%emt
00:00:28]} 39. Kb3 {[%clk 00:01:00]} {[%emt 00:01:51]} Rc6 {[%clk 00:05:29]}
{[%emt 00:04:30]} 40. Rg1 {[%clk 00:00:31]} {[%emt 00:00:59]} Rd6 {[%clk
00:03:47]} {[%emt 00:02:12]} 41. Rh1 {[%clk 00:28:22]} {[%emt 00:02:39]} b5
{[%clk 00:24:14]} {[%emt 00:10:03]} 42. a4 {[%clk 00:25:02]} {[%emt 00:03:49]}
Nc4 {[%clk 00:22:37]} {[%emt 00:02:07]} 43. axb5 {[%clk 00:25:05]} {[%emt
00:00:27]} axb5 {[%clk 00:21:59]} {[%emt 00:01:09]} 44. e5 {[%clk 00:23:38]}
{[%emt 00:01:56]} Ndxe5 {[%clk 00:15:50]} {[%emt 00:06:39]} 45. Bc5 {[%clk
00:23:48]} {[%emt 00:00:19]} Ra6 {[%clk 00:14:31]} {[%emt 00:01:49]} 46. Rd1
{[%clk 00:21:25]} {[%emt 00:02:52]} Nd6 {[%clk 00:13:00]} {[%emt 00:02:02]} 47.
Be6 {[%clk 00:21:44]} {[%emt 00:00:11]} Kc6 {[%clk 00:12:30]} {[%emt 00:01:01]}
48. Bd4 {[%clk 00:15:55]} {[%emt 00:06:18]} Ndc4 {[%clk 00:10:32]} {[%emt
00:02:28]} 49. Bc5 {[%clk 00:15:49]} {[%emt 00:00:36]} Ra3+ {[%clk 00:10:27]}
{[%emt 00:00:36]} 50. Kc2 {[%clk 00:16:17]} {[%emt 00:00:03]} Nd6 {[%clk
00:10:41]} {[%emt 00:00:14]} 51. Kb2 {[%clk 00:15:07]} {[%emt 00:01:41]} Rd3
{[%clk 00:10:39]} {[%emt 00:00:31]} 52. Ra1 {[%clk 00:14:51]} {[%emt 00:00:46]}
Nec4+ {[%clk 00:09:14]} {[%emt 00:01:56]} 53. Kc2 {[%clk 00:14:10]} {[%emt
00:01:11]} Rd2+ {[%clk 00:08:40]} {[%emt 00:01:04]} 54. Kb3 {[%clk 00:14:05]}
{[%emt 00:00:35]} Rb2+ {[%clk 00:08:34]} {[%emt 00:00:37]} 55. Kc3 {[%clk
00:14:31]} {[%emt 00:00:04]} Ne4+ {[%clk 00:08:49]} {[%emt 00:00:14]} 56. Kd4
{[%clk 00:14:54]} {[%emt 00:00:06]} Nxc5 {[%clk 00:08:50]} {[%emt 00:00:29]} 57.
Bd5+ {[%clk 00:15:18]} {[%emt 00:00:06]} Kd6 {[%clk 00:08:42]} {[%emt
00:00:38]} 58. bxc5+ {[%clk 00:15:43]} {[%emt 00:00:05]} Kd7 {[%clk 00:09:01]}
{[%emt 00:00:12]} 59. Ra6 {[%clk 00:14:53]} {[%emt 00:01:19]} Rxf2 {[%clk
00:08:21]} {[%emt 00:01:09]} 60. Bc6+ {[%clk 00:15:02]} {[%emt 00:00:22]} Ke7
{[%clk 00:08:31]} {[%emt 00:00:20]} 61. Bxb5 {[%clk 00:15:07]} {[%emt
00:00:26]} Ne5 {[%clk 00:08:23]} {[%emt 00:00:37]} 62. Ra7 {[%clk 00:15:29]}
{[%emt 00:00:08]} Ke6 {[%clk 00:06:03]} {[%emt 00:02:51]} 63. Rxc7 {[%clk
00:14:05]} {[%emt 00:01:53]} h3 {[%clk 00:05:39]} {[%emt 00:00:55]} 64. Rh7
{[%clk 00:13:49]} {[%emt 00:00:45]} h2 {[%clk 00:05:34]} {[%emt 00:00:35]} 65.
c6 {[%clk 00:12:30]} {[%emt 00:01:49]} Rc2 {[%clk 00:05:24]} {[%emt 00:00:40]}
66. c7 {[%clk 00:10:57]} {[%emt 00:02:03]} Rxc7 {[%clk 00:05:16]} {[%emt
00:00:39]} 67. Rh3 {[%clk 00:09:51]} {[%emt 00:01:36]} Rc1 {[%clk 00:05:35]}
{[%emt 00:00:12]} 0-1

[Event "Schack-SM 2024: Sverigemastarklassen"]
[Site "Fortnox Arena, Hejaregatan 5, Vaxjo, Sweden"]
[Date "2024.07.05"]
[Round "7.1"]
[White "Sivuk, Vitaly"]
[Black "Galperin, Platon"]
[Result "1/2-1/2"]
[TimeControl "90 minutes for 40 moves + 30 minutes for the rest of the game + 30 seconds per move from move one."]
[WhiteTitle "GM"]
[BlackTitle "GM"]
[WhiteElo "2569"]
[BlackElo "2551"]

1. d4 {[%clk 01:30:53]} {[%emt 00:00:07]} Nf6 {[%clk 01:29:59]} {[%emt
00:01:02]} 2. c4 {[%clk 01:31:13]} {[%emt 00:00:09]} c6 {[%clk 01:30:26]}
{[%emt 00:00:04]} 3. Nc3 {[%clk 01:31:34]} {[%emt 00:00:08]} d5 {[%clk
01:30:52]} {[%emt 00:00:06]} 4. cxd5 {[%clk 01:31:55]} {[%emt 00:00:08]} cxd5
{[%clk 01:31:18]} {[%emt 00:00:04]} 5. Nf3 {[%clk 01:32:18]} {[%emt 00:00:07]}
Nc6 {[%clk 01:31:45]} {[%emt 00:00:04]} 6. Bf4 {[%clk 01:32:39]} {[%emt
00:00:08]} Nh5 {[%clk 01:32:12]} {[%emt 00:00:03]} 7. Bd2 {[%clk 01:32:59]}
{[%emt 00:00:09]} Nf6 {[%clk 01:32:38]} {[%emt 00:00:04]} 8. Bf4 {[%clk
01:33:23]} {[%emt 00:00:06]} Nh5 {[%clk 01:33:06]} {[%emt 00:00:03]} 9. Bd2
{[%clk 01:33:46]} {[%emt 00:00:06]} Nf6 {[%clk 01:33:33]} {[%emt 00:00:03]} 10.
Bf4 {[%clk 01:34:10]} {[%emt 00:00:06]} Nh5 {[%clk 01:33:57]} {[%emt 00:00:06]}
1/2-1/2

[Event "Schack-SM 2024: Sverigemastarklassen"]
[Site "Fortnox Arena, Hejaregatan 5, Vaxjo, Sweden"]
[Date "2024.07.05"]
[Round "7.2"]
[White "Pantzar, Milton"]
[Black "Hillarp Persson, Tiger"]
[Result "1/2-1/2"]
[TimeControl "90 minutes for 40 moves + 30 minutes for the rest of the game + 30 seconds per move from move one."]
[WhiteTitle "IM"]
[BlackTitle "GM"]
[WhiteElo "2480"]
[BlackElo "2455"]

1. Nf3 {[%clk 01:30:52]} {[%emt 00:00:07]} Nf6 {[%clk 01:30:36]} {[%emt
00:00:23]} 2. e3 {[%clk 01:29:51]} {[%emt 00:01:32]} g6 {[%clk 01:30:02]}
{[%emt 00:01:05]} 3. b4 {[%clk 01:28:20]} {[%emt 00:02:00]} Bg7 {[%clk
01:29:16]} {[%emt 00:01:15]} 4. Bb2 {[%clk 01:28:19]} {[%emt 00:00:33]} O-O
{[%clk 01:28:15]} {[%emt 00:01:30]} 5. c4 {[%clk 01:27:03]} {[%emt 00:01:46]}
d6 {[%clk 01:27:45]} {[%emt 00:01:00]} 6. Be2 {[%clk 01:26:05]} {[%emt
00:01:28]} e5 {[%clk 01:26:28]} {[%emt 00:01:47]} 7. d3 {[%clk 01:25:02]}
{[%emt 00:01:33]} Re8 {[%clk 01:18:25]} {[%emt 00:08:34]} 8. O-O {[%clk
01:23:12]} {[%emt 00:02:19]} a5 {[%clk 01:07:19]} {[%emt 00:11:35]} 9. b5
{[%clk 01:22:10]} {[%emt 00:01:32]} Nbd7 {[%clk 01:03:03]} {[%emt 00:04:45]} 10.
Nc3 {[%emt 00:05:53]} Nc5 {[%clk 01:02:31]} 11. Qc2 {[%clk 01:09:15]} {[%emt
00:09:05]} Bf5 {[%clk 00:56:21]} {[%emt 00:06:39]} 12. Nd2 {[%clk 01:03:46]}
{[%emt 00:05:59]} e4 {[%clk 00:53:36]} {[%emt 00:03:16]} 13. dxe4 {[%clk
00:59:47]} {[%emt 00:04:29]} Nfxe4 {[%clk 00:45:44]} {[%emt 00:08:21]} 14.
Ndxe4 {[%clk 00:58:30]} {[%emt 00:01:48]} Nxe4 {[%clk 00:41:35]} {[%emt
00:04:39]} 15. Bd3 {[%clk 00:55:01]} {[%emt 00:03:59]} Nxc3 {[%clk 00:40:48]}
{[%emt 00:01:16]} 16. Bxf5 {[%clk 00:52:03]} {[%emt 00:03:29]} Qf6 {[%clk
00:30:32]} {[%emt 00:10:46]} 17. Bg4 {[%clk 00:46:28]} {[%emt 00:06:05]} Ne2+
{[%clk 00:28:12]} {[%emt 00:02:49]} 18. Qxe2 {[%clk 00:41:04]} {[%emt
00:05:54]} Qxb2 {[%clk 00:28:33]} {[%emt 00:00:09]} 19. Rad1 {[%clk 00:39:03]}
{[%emt 00:02:31]} Qxe2 {[%clk 00:25:50]} {[%emt 00:03:14]} 20. Bxe2 {[%clk
00:38:57]} {[%emt 00:00:35]} Rad8 {[%clk 00:26:10]} {[%emt 00:00:10]} 21. Bf3
{[%clk 00:37:44]} {[%emt 00:01:42]} b6 {[%clk 00:26:33]} {[%emt 00:00:08]} 22.
Rd3 {[%clk 00:33:34]} {[%emt 00:04:41]} f5 {[%clk 00:24:06]} {[%emt 00:02:56]}
23. Bd5+ {[%clk 00:30:02]} {[%emt 00:04:03]} Kh8 {[%clk 00:24:29]} {[%emt
00:00:06]} 24. f4 {[%clk 00:29:49]} {[%emt 00:00:44]} Re7 {[%clk 00:23:57]}
{[%emt 00:01:01]} 25. Kf2 {[%clk 00:28:56]} {[%emt 00:01:25]} Bf6 {[%clk
00:21:00]} {[%emt 00:03:28]} 26. Kf3 {[%clk 00:25:00]} {[%emt 00:04:26]} Rf8
{[%clk 00:18:45]} {[%emt 00:02:43]} 27. h3 {[%clk 00:21:06]} {[%emt 00:04:24]}
Kg7 {[%clk 00:17:57]} {[%emt 00:01:19]} 28. Rg1 {[%clk 00:11:54]} {[%emt
00:09:43]} h5 {[%clk 00:09:47]} {[%emt 00:08:39]} 29. g4 {[%clk 00:11:21]}
{[%emt 00:01:04]} hxg4+ {[%clk 00:10:03]} {[%emt 00:00:14]} 30. hxg4 {[%clk
00:11:46]} {[%emt 00:00:04]} fxg4+ {[%clk 00:10:24]} {[%emt 00:00:09]} 31. Rxg4
{[%clk 00:10:50]} {[%emt 00:01:26]} Rh8 {[%clk 00:10:48]} {[%emt 00:00:07]} 32.
Kg2 {[%clk 00:03:59]} {[%emt 00:07:21]} Rh4 {[%clk 00:08:22]} {[%emt 00:02:56]}
33. Rxh4 {[%clk 00:03:08]} {[%emt 00:01:20]} Bxh4 {[%clk 00:08:45]} {[%emt
00:00:07]} 34. Kf3 {[%clk 00:03:33]} {[%emt 00:00:05]} Be1 {[%clk 00:02:56]}
{[%emt 00:06:21]} 35. Be4 {[%clk 00:03:02]} {[%emt 00:01:00]} Bb4 {[%clk
00:01:47]} {[%emt 00:01:38]} 36. Rd5 {[%clk 00:03:24]} {[%emt 00:00:09]} Kf6
{[%clk 00:01:31]} {[%emt 00:00:46]} 37. Rg5 {[%clk 00:03:43]} {[%emt 00:00:10]}
Rg7 {[%clk 00:01:55]} {[%emt 00:00:07]} 38. Bc6 {[%clk 00:01:26]} {[%emt
00:02:47]} Bc5 {[%clk 00:01:27]} {[%emt 00:00:57]} 39. Be4 {[%clk 00:01:44]}
{[%emt 00:00:12]} Kf7 {[%clk 00:01:02]} {[%emt 00:00:55]} 40. a4 {[%clk
00:01:04]} {[%emt 00:01:12]} Kf6 {[%clk 00:01:16]} {[%emt 00:00:15]} 41. Bc2
{[%clk 00:29:38]} {[%emt 00:01:56]} Rg8 {[%clk 00:26:41]} {[%emt 00:05:05]} 42.
Rg2 {[%clk 00:19:41]} {[%emt 00:10:27]} g5 {[%clk 00:26:22]} {[%emt 00:00:50]}
43. Rh2 {[%clk 00:17:07]} {[%emt 00:03:05]} g4+ {[%clk 00:25:28]} {[%emt
00:01:23]} 44. Kg3 {[%clk 00:15:59]} {[%emt 00:01:38]} Bxe3 {[%clk 00:25:44]}
{[%emt 00:00:14]} 45. Rh6+ {[%clk 00:16:08]} {[%emt 00:00:22]} Kf7 {[%clk
00:17:33]} {[%emt 00:08:41]} 46. Be4 {[%clk 00:10:35]} {[%emt 00:06:02]} Rf8
{[%clk 00:11:05]} {[%emt 00:06:59]} 47. Bf5 {[%clk 00:04:11]} {[%emt 00:06:54]}
Bd4 {[%clk 00:09:48]} {[%emt 00:01:46]} 48. Kxg4 {[%clk 00:01:58]} {[%emt
00:02:45]} Rh8 {[%clk 00:09:46]} {[%emt 00:00:31]} 49. Rxh8 {[%clk 00:02:06]}
{[%emt 00:00:21]} Bxh8 {[%clk 00:10:09]} {[%emt 00:00:07]} 1/2-1/2

[Event "Schack-SM 2024: Sverigemastarklassen"]
[Site "Fortnox Arena, Hejaregatan 5, Vaxjo, Sweden"]
[Date "2024.07.05"]
[Round "7.3"]
[White "Semcesen, Daniel"]
[Black "Ostlund, Joar"]
[Result "1/2-1/2"]
[TimeControl "90 minutes for 40 moves + 30 minutes for the rest of the game + 30 seconds per move from move one."]
[WhiteTitle "GM"]
[BlackTitle "FM"]
[WhiteElo "2451"]
[BlackElo "2334"]

1. Nf3 {[%clk 01:29:49]} {[%emt 00:01:10]} d5 {[%clk 01:30:51]} {[%emt
00:00:10]} 2. g3 {[%clk 01:30:12]} {[%emt 00:00:07]} Bg4 {[%clk 01:30:49]}
{[%emt 00:00:33]} 3. Bg2 {[%clk 01:30:34]} {[%emt 00:00:09]} Nd7 {[%clk
01:31:11]} {[%emt 00:00:08]} 4. d3 {[%clk 01:30:25]} {[%emt 00:00:38]} c6
{[%clk 01:31:00]} {[%emt 00:00:49]} 5. Nbd2 {[%clk 01:30:22]} {[%emt 00:00:25]}
Ngf6 {[%clk 01:28:48]} {[%emt 00:02:41]} 6. h3 {[%clk 01:29:47]} {[%emt
00:01:05]} Bh5 {[%clk 01:27:52]} {[%emt 00:01:27]} 7. O-O {[%clk 01:29:29]}
{[%emt 00:00:48]} e5 {[%clk 01:16:04]} {[%emt 00:12:19]} 8. e4 {[%clk
01:29:10]} {[%emt 00:00:48]} dxe4 {[%clk 01:15:20]} {[%emt 00:01:14]} 9. dxe4
{[%clk 01:29:32]} {[%emt 00:00:09]} Bc5 {[%clk 01:14:25]} {[%emt 00:01:25]} 10.
Qe1 {[%clk 01:29:06]} {[%emt 00:00:55]} O-O {[%clk 01:13:38]} {[%emt 00:01:17]}
11. a4 {[%clk 01:25:52]} {[%emt 00:03:44]} Re8 {[%clk 01:08:25]} {[%emt
00:05:43]} 12. Nc4 {[%clk 01:23:41]} {[%emt 00:02:41]} Qe7 {[%clk 01:05:48]}
{[%emt 00:03:08]} 13. Nh4 {[%clk 01:21:23]} {[%emt 00:02:47]} Bg6 {[%clk
01:04:02]} {[%emt 00:02:16]} 14. Bd2 {[%clk 01:19:00]} {[%emt 00:02:53]} Nb6
{[%clk 00:59:48]} {[%emt 00:04:45]} 15. Nxg6 {[%clk 01:14:37]} {[%emt
00:04:52]} hxg6 {[%clk 00:59:36]} {[%emt 00:00:43]} 16. Ne3 {[%clk 01:13:36]}
{[%emt 00:01:30]} Qe6 {[%clk 00:54:22]} {[%emt 00:05:45]} 17. Qe2 {[%clk
01:11:54]} {[%emt 00:02:11]} a5 {[%clk 00:46:34]} {[%emt 00:08:18]} 18. Rfd1
{[%clk 01:07:31]} {[%emt 00:04:54]} Bd4 {[%clk 00:40:05]} {[%emt 00:06:59]} 19.
Rdb1 {[%clk 00:56:57]} {[%emt 00:11:06]} Red8 {[%clk 00:36:47]} {[%emt
00:03:46]} 20. Be1 {[%clk 00:55:50]} {[%emt 00:01:36]} Rd7 {[%clk 00:35:07]}
{[%emt 00:02:12]} 21. Kh2 {[%clk 00:47:30]} {[%emt 00:08:50]} Bc5 {[%clk
00:29:17]} {[%emt 00:06:20]} 22. b3 {[%clk 00:36:30]} {[%emt 00:11:29]} Bd4
{[%clk 00:28:29]} {[%emt 00:01:19]} 23. Ra2 {[%clk 00:35:28]} {[%emt 00:01:32]}
Qe7 {[%clk 00:19:13]} {[%emt 00:09:46]} 24. Bf3 {[%clk 00:26:41]} {[%emt
00:09:16]} Qc5 {[%clk 00:18:48]} {[%emt 00:00:54]} 25. b4 {[%clk 00:26:27]}
{[%emt 00:00:46]} Qd6 {[%clk 00:06:30]} {[%emt 00:12:46]} 26. bxa5 {[%clk
00:24:24]} {[%emt 00:02:33]} Bxe3 {[%clk 00:06:54]} {[%emt 00:00:07]} 27. axb6
{[%clk 00:20:59]} {[%emt 00:03:55]} Bd2 {[%clk 00:07:03]} {[%emt 00:00:20]} 28.
a5 {[%clk 00:17:30]} {[%emt 00:03:59]} Bxe1 {[%clk 00:06:18]} {[%emt 00:01:14]}
29. Qxe1 {[%clk 00:17:34]} {[%emt 00:00:26]} Qc5 {[%clk 00:06:06]} {[%emt
00:00:43]} 30. Kg2 {[%clk 00:15:33]} {[%emt 00:02:31]} Rd4 {[%clk 00:05:55]}
{[%emt 00:00:41]} 31. a6 {[%clk 00:10:04]} {[%emt 00:05:59]} Nd7 {[%clk
00:00:54]} {[%emt 00:05:31]} 32. Ra5 {[%clk 00:07:18]} {[%emt 00:03:16]} Qxc2
{[%clk 00:01:10]} {[%emt 00:00:14]} 33. Rc1 {[%clk 00:03:40]} {[%emt 00:04:08]}
Qb2 {[%clk 00:01:05]} {[%emt 00:00:35]} 34. Rb1 {[%clk 00:03:41]} {[%emt
00:00:29]} Qc2 {[%clk 00:01:33]} {[%emt 00:00:03]} 35. Bg4 {[%clk 00:03:34]}
{[%emt 00:00:36]} Rxe4 {[%clk 00:00:50]} {[%emt 00:01:14]} 36. Qd1 {[%clk
00:03:32]} {[%emt 00:00:32]} Qxd1 {[%clk 00:00:54]} {[%emt 00:00:26]} 37. Rxd1
{[%clk 00:03:55]} {[%emt 00:00:06]} Nxb6 {[%clk 00:01:11]} {[%emt 00:00:14]} 38.
axb7 {[%clk 00:03:58]} {[%emt 00:00:27]} Rb8 {[%clk 00:01:16]} {[%emt
00:00:25]} 39. Rb1 {[%clk 00:02:18]} {[%emt 00:02:10]} Ra4 {[%clk 00:00:41]}
{[%emt 00:01:05]} 40. Rc5 {[%clk 00:01:42]} {[%emt 00:01:05]} Rc4 {[%clk
00:00:32]} {[%emt 00:00:40]} 41. Ra5 {[%clk 00:14:25]} {[%emt 00:17:46]} Ra4
{[%clk 00:28:32]} {[%emt 00:02:31]} 42. Rxe5 {[%clk 00:13:08]} {[%emt
00:01:49]} Rxb7 {[%clk 00:21:17]} {[%emt 00:07:45]} 43. Re8+ {[%clk 00:12:18]}
{[%emt 00:01:18]} Kh7 {[%clk 00:21:45]} {[%emt 00:00:03]} 44. Bf3 {[%clk
00:11:28]} {[%emt 00:01:21]} Ra6 {[%clk 00:12:16]} {[%emt 00:09:58]} 45. h4
{[%clk 00:11:34]} {[%emt 00:00:24]} Rc7 {[%clk 00:10:42]} {[%emt 00:02:04]} 46.
g4 {[%clk 00:08:12]} {[%emt 00:03:52]} Ra8 {[%clk 00:06:47]} {[%emt 00:04:24]}
47. Rxa8 {[%clk 00:07:01]} {[%emt 00:01:41]} Nxa8 {[%clk 00:07:14]} {[%emt
00:00:03]} 48. Rb8 {[%clk 00:07:22]} {[%emt 00:00:09]} Ra7 {[%clk 00:07:35]}
{[%emt 00:00:10]} 49. Bxc6 {[%clk 00:07:04]} {[%emt 00:00:48]} Nc7 {[%clk
00:07:57]} {[%emt 00:00:09]} 50. Be4 {[%clk 00:07:21]} {[%emt 00:00:11]} Ra4
{[%clk 00:01:42]} {[%emt 00:06:46]} 51. f3 {[%clk 00:07:11]} {[%emt 00:00:40]}
Ne6 {[%clk 00:01:42]} {[%emt 00:00:29]} 52. Kg3 {[%clk 00:07:04]} {[%emt
00:00:38]} Nc5 {[%clk 00:01:22]} {[%emt 00:00:50]} 53. Bd5 {[%clk 00:06:23]}
{[%emt 00:01:12]} Ra7 {[%clk 00:01:00]} {[%emt 00:00:52]} 54. Re8 {[%clk
00:05:40]} {[%emt 00:01:13]} Rd7 {[%clk 00:01:02]} {[%emt 00:00:29]} 55. Bc4
{[%clk 00:05:27]} {[%emt 00:00:41]} Rc7 {[%clk 00:01:22]} {[%emt 00:00:11]} 56.
Ba2 {[%clk 00:04:07]} {[%emt 00:01:50]} Ra7 {[%clk 00:01:42]} {[%emt 00:00:11]}
57. Bb1 {[%clk 00:04:13]} {[%emt 00:00:23]} Rb7 {[%clk 00:01:26]} {[%emt
00:00:46]} 58. Bc2 {[%clk 00:04:23]} {[%emt 00:00:21]} Rb2 {[%clk 00:01:35]}
{[%emt 00:00:20]} 59. Re2 {[%clk 00:04:40]} {[%emt 00:00:12]} Kg8 {[%clk
00:01:38]} {[%emt 00:00:25]} 60. h5 {[%clk 00:04:25]} {[%emt 00:00:46]} Kf8
{[%clk 00:00:58]} {[%emt 00:01:12]} 61. hxg6 {[%clk 00:04:14]} {[%emt
00:00:41]} fxg6 {[%clk 00:01:21]} {[%emt 00:00:06]} 62. Rh2 {[%clk 00:04:12]}
{[%emt 00:00:31]} Ke7 {[%clk 00:01:04]} {[%emt 00:00:47]} 63. Re2+ {[%clk
00:04:03]} {[%emt 00:00:39]} Ne6 {[%clk 00:00:50]} {[%emt 00:00:44]} 64. f4
{[%clk 00:03:41]} {[%emt 00:00:51]} Kd6 {[%clk 00:00:48]} {[%emt 00:00:33]} 65.
Rd2+ {[%clk 00:03:10]} {[%emt 00:01:01]} Ke7 {[%clk 00:00:49]} {[%emt
00:00:30]} 66. g5 {[%clk 00:02:28]} {[%emt 00:01:11]} Nd4 {[%clk 00:00:56]}
{[%emt 00:00:23]} 67. Rxd4 {[%clk 00:02:50]} {[%emt 00:00:07]} 1/2-1/2